{"text_format":"1","workbook":"xlsx","n_sheets":1,"sheets":["個別ケア会議報告書"],"not_rendered":{"charts":0,"images":0,"macros":1,"external_links":0,"defined_names":0,"comments":1,"pivot_tables":0},"unopened":[],"bounds":{"document_bytes":16777216,"sheet_cells":100000,"rows_first":2000,"rows_last":500,"rows_between":2000,"halvings":0,"cell_chars":16384,"cell_head_chars":4096},"cells_cut":0,"cells_raw":0,"read":"whole","date_system":"1900"}

{"sheet":"個別ケア会議報告書","index":0,"n_rows":207,"n_cols":66,"rows_kept":207,"cut":false,"hidden":false,"merged":[[2,4,2,9],[4,65,5,65],[4,21,4,43],[4,0,5,0],[4,2,5,2],[4,3,5,3],[4,4,4,5],[4,7,4,10],[4,13,4,20],[4,11,4,12],[4,44,4,64],[4,1,5,1]]}
["（様式１）"]
["　　　年度　個別ケア会議等報告書"]
[null,null,null,"センター名",null,null,null,null,null,null,"地域包括支援センター"]
[]
["月","日","NO","センター名","回数",null,"個人情報","世帯構成",null,null,null,"属性",null,"開催目的（主なもの）",null,null,null,null,null,null,null,"参加者（該当する者全て）",null,null,null,null,null,null,null,null,null,null,null,null,null,null,null,null,null,null,null,null,null,null,"主な論点",null,null,null,null,null,null,null,null,null,null,null,null,null,null,null,null,null,null,null,null,"検討概要の特記事項・備考欄（必要に応じて記載）"]
[null,null,null,null,"初回","２回目以降","□本人同意有（書面）\n□本人同意有（書面以外）\n□本人同意取得不能","独居","夫婦のみ","家族と同居","その他","複合的な課題がある世帯","介護離職のリスク","支援方針検討","専門機関連携","行政部署との連携","支援者支援","地域連携","苦情・トラブル","その他","その他の内容","本人","家族","知人","民生委員","地域住民(地縁組織含む)","ケアマネジャー","介護サービス事業所","権利擁護専門職","医療機関・薬局","地域リハ拠点","生活支援コーディネーター","地域ケアコーディネーター","障害者相談支援センター","障害サービス事業所","地域支援室","高齢者支援係","障害者支援係","精神保健係","保護課","地域支援課","その他行政","他地域包括支援センター","その他","認知症","障害","精神疾患","身寄り無・KP不在等","支援拒否・援助希求無","金銭管理","成年後見制度関係","経済問題","ごみ問題","医療との連携","他分野の支援者との連携","支援者の役割分担","支援者の経験・スキル","家族関係・トラブル","ご近所トラブル","他苦情・トラブル","自立支援・介護予防","入退院時支援","健康管理","その他","その他の内容"]
[null,null,"年計",null,{"$f":"COUNTA(E8:E207)","v":0},{"$f":"COUNTA(F8:F207)","v":0},null,{"$f":"COUNTA(H8:H207)","v":0},0,0,0,0,0,0,0,0,0,0,0,0,null,{"$f":"COUNTA(V8:V207)","v":0},0,0,0,0,0,0,0,0,0,0,0,0,0,0,0,0,0,0,0,0,0,0,0,0,0,0,0,0,0,0,0,0,0,0,0,0,0,0,0,0,0,0]
[null,null,1,{"$f":"$E$3","v":0}]
[null,null,{"$f":"C8+1","v":2},{"$f":"$E$3","v":0}]
[null,null,{"$f":"C9+1","v":3},0]
[null,null,4,0]
[null,null,5,0]
[null,null,6,0]
[null,null,7,0]
[null,null,8,0]
[null,null,9,0]
[null,null,10,0]
[null,null,11,0]
[null,null,12,0]
[null,null,13,0]
[null,null,14,0]
[null,null,15,0]
[null,null,16,0]
[null,null,17,0]
[null,null,18,0]
[null,null,19,0]
[null,null,20,0]
[null,null,21,0]
[null,null,22,0]
[null,null,23,0]
[null,null,24,0]
[null,null,25,0]
[null,null,26,0]
[null,null,27,0]
[null,null,28,0]
[null,null,29,0]
[null,null,30,0]
[null,null,31,0]
[null,null,32,0]
[null,null,33,0]
[null,null,34,0]
[null,null,35,0]
[null,null,36,0]
[null,null,37,0]
[null,null,38,0]
[null,null,39,0]
[null,null,40,0]
[null,null,41,0]
[null,null,42,0]
[null,null,43,0]
[null,null,44,0]
[null,null,45,0]
[null,null,46,0]
[null,null,47,0]
[null,null,48,0]
[null,null,49,0]
[null,null,50,0]
[null,null,51,0]
[null,null,52,0]
[null,null,53,0]
[null,null,54,0]
[null,null,55,0]
[null,null,56,0]
[null,null,57,0]
[null,null,58,0]
[null,null,59,0]
[null,null,60,0]
[null,null,61,0]
[null,null,62,0]
[null,null,63,0]
[null,null,64,0]
[null,null,65,0]
[null,null,66,0]
[null,null,{"$f":"C73+1","v":67},0]
[null,null,68,0]
[null,null,69,0]
[null,null,70,0]
[null,null,71,0]
[null,null,72,0]
[null,null,73,0]
[null,null,74,0]
[null,null,75,0]
[null,null,76,0]
[null,null,77,0]
[null,null,78,0]
[null,null,79,0]
[null,null,80,0]
[null,null,81,0]
[null,null,82,0]
[null,null,83,0]
[null,null,84,0]
[null,null,85,0]
[null,null,86,0]
[null,null,87,0]
[null,null,88,0]
[null,null,89,0]
[null,null,90,0]
[null,null,91,0]
[null,null,92,0]
[null,null,93,0]
[null,null,94,0]
[null,null,95,0]
[null,null,96,0]
[null,null,97,0]
[null,null,98,0]
[null,null,99,0]
[null,null,100,0]
[null,null,101,0]
[null,null,102,0]
[null,null,103,0]
[null,null,104,0]
[null,null,105,0]
[null,null,106,0]
[null,null,107,0]
[null,null,108,0]
[null,null,109,0]
[null,null,110,0]
[null,null,111,0]
[null,null,112,0]
[null,null,113,0]
[null,null,114,0]
[null,null,115,{"$f":"$E$3","v":0}]
[null,null,116,0]
[null,null,117,0]
[null,null,118,0]
[null,null,119,0]
[null,null,120,0]
[null,null,121,0]
[null,null,122,0]
[null,null,123,0]
[null,null,124,0]
[null,null,125,0]
[null,null,126,0]
[null,null,127,0]
[null,null,128,0]
[null,null,129,0]
[null,null,130,0]
[null,null,{"$f":"C137+1","v":131},0]
[null,null,132,0]
[null,null,133,0]
[null,null,134,0]
[null,null,135,0]
[null,null,136,0]
[null,null,137,0]
[null,null,138,0]
[null,null,139,0]
[null,null,140,0]
[null,null,141,0]
[null,null,142,0]
[null,null,143,0]
[null,null,144,0]
[null,null,145,0]
[null,null,146,0]
[null,null,147,0]
[null,null,148,0]
[null,null,149,0]
[null,null,150,0]
[null,null,151,0]
[null,null,152,0]
[null,null,153,0]
[null,null,154,0]
[null,null,155,0]
[null,null,156,0]
[null,null,157,0]
[null,null,158,0]
[null,null,159,0]
[null,null,160,0]
[null,null,161,0]
[null,null,162,0]
[null,null,163,0]
[null,null,164,0]
[null,null,165,0]
[null,null,166,0]
[null,null,167,0]
[null,null,168,0]
[null,null,169,0]
[null,null,170,0]
[null,null,171,0]
[null,null,172,0]
[null,null,173,0]
[null,null,174,0]
[null,null,175,0]
[null,null,176,0]
[null,null,177,0]
[null,null,178,{"$f":"$E$3","v":0}]
[null,null,179,0]
[null,null,180,0]
[null,null,181,0]
[null,null,182,0]
[null,null,183,0]
[null,null,184,0]
[null,null,185,0]
[null,null,186,0]
[null,null,187,0]
[null,null,188,0]
[null,null,189,0]
[null,null,190,0]
[null,null,191,0]
[null,null,192,0]
[null,null,193,0]
[null,null,194,0]
[null,null,{"$f":"C201+1","v":195},0]
[null,null,196,0]
[null,null,197,0]
[null,null,198,0]
[null,null,199,0]
[null,null,200,0]